Cogmind - Beta 9 *** ADVENTURER MODE // 2019.10.27 @ 19:02:20 Player: Scandroid Result: Destroyed by G-47 Trooper with Particle Gun Performance ------------- Evolutions (2) 1000 Regions Visited (3) 600 Robots Destroyed (93) 465 Value Destroyed (1941) 1941 Prototype IDs (7) 140 Alien Tech Used (0) 0 Bonus (116) 116 TOTAL SCORE: 4262 Bonus ------- High Alert Combat Kills 116 Cogmind --------- Core Integrity 0/550 Matter 300/300 Energy 100/100 System Corruption 0% Temperature Cool (9) Location -8/Materials Parts ------- Power (1) Propulsion (3) Utility (5) High-capacity Storage Unit Signal Interpreter Weapon (2) Inventory (12) Large Battery (300) Advanced Visual Processing Unit Improved Signal Interpreter Transport Network Coupler Improved Light Armor Plating Hacking Suite Field Recycling Unit (0) Peak State ------------ Power Light Nuclear Core Propulsion Wheel Wheel Compact Wheel Utility Improved Heat Sink High-capacity Storage Unit Sensor Array Signal Interpreter Targeting Computer Weapon Beam Rifle Gauss Rifle Inventory Large Battery Improved Signal Interpreter Transport Network Coupler Improved Light Armor Plating Hacking Suite Field Recycling Unit Beam Cannon [Rating: 20] Favorites ----------- Power Light Ion Engine Engine Light Ion Engine Power Core Light Nuclear Core Propulsion Wheel Wheel Wheel Utility Sensor Array Device Sensor Array Storage Small Storage Unit Processor Signal Interpreter Protection Light Armor Plating Weapon Small Laser Energy Gun Small Laser Energy Cannon Beam Cannon Ballistic Gun Autogun Special Weapon Mining Laser Build | -11 -10 -9 -8 ------- Run | Scr Mat Mat Mat Slots Evolved 4 | . . 2 2 Power . | . . . . Propulsion 1 | . . 1 . Utility 3 | . . 1 2 Weapon . | . . . . Parts Attached 49 | 7 8 23 11 Power 9 | 1 1 5 2 Engine 8 | 1 1 5 1 Core 1 | . . . 1 Reactor . | . . . . Propulsion 12 | 2 1 8 1 Treads . | . . . . Leg . | . . . . Wheel 12 | 2 1 8 1 Hover . | . . . . Flight . | . . . . Utility 12 | 2 3 3 4 Device 6 | 1 2 1 2 Storage 2 | 1 . 1 . Processor 2 | . . 1 1 Hackware . | . . . . Protection 2 | . 1 . 1 Artifact . | . . . . Weapon 16 | 2 3 7 4 Energy Gun 7 | 2 1 2 2 Energy Cannon 4 | . . 3 1 Ballistic Gun 4 | . 1 2 1 Ballistic Cannon . | . . . . Launcher . | . . . . Special Weapon 1 | . 1 . . Impact Weapon . | . . . . Slashing Weapon . | . . . . Piercing Weapon . | . . . . Special Melee Weapon . | . . . . Unidentified Prototypes 1 | . . 1 . Parts Lost 26 | . 5 11 10 Power 5 | . 1 3 1 Propulsion 10 | . 1 5 4 Utility 3 | . . . 3 Weapon 8 | . 3 3 2 Highest Loss Streak 9 | . 5 2 9 Average Slot Usage (%) 89 | . 90 88 87 Engine 10 | . 14 10 4 Wheel 24 | . 22 25 23 Device 11 | . 10 11 15 Storage 11 | . 14 11 9 Processor 9 | . . 11 17 Energy Gun 7 | . 17 2 4 Energy Cannon 5 | . . 7 6 Ballistic Gun 8 | . 9 9 2 Naked Turns . | . . . . Heaviest Build 46 | 10 12 46 46 Greatest Support 36 | 20 20 36 36 Greatest Overweight (x) 13 | . . 13 10 Average Overweight (x) . | . . 1 1 Largest Inventory Capacity 12 | 6 6 12 12 Average Capacity 8 | 5 6 9 12 Most Carried 12 | 6 6 12 8 Average Carried 6 | 4 5 7 6 Final Capacity 12 | . . . 12 Final Carried 7 | . . . 7 Class Distribution -------------------- 64% | Mutant 35% | Scavenger-Mutant Dominant Class ---------------- Mutant | -10/Materials Scavenger-Mutant | -9/Materials Scavenger-Mutant | -8/Materials Resources | -11 -10 -9 -8 ----------- Run | Scr Mat Mat Mat Matter Collected 1119 | 270 84 644 121 Remotely . | . . . . Salvage Created 2874 | 354 306 1803 411 Parts 209 | 37 33 120 19 Haulers Intercepted 1 | . . 1 . Recyclers Shooed 2 | 1 . 1 . Parts Field Recycled . | . . . . Retrieved Matter . | . . . . Parts Self-Destructed . | . . . . Prevented . | . . . . Kills | -11 -10 -9 -8 ------- Run | Scr Mat Mat Mat Combat Hostiles Destroyed 56 | . 13 37 6 Guns 33 | . 13 19 1 Cannons 23 | . . 18 5 Classes Destroyed 11 | 3 4 3 1 Worker 8 | 4 1 2 1 Builder 8 | . 1 5 2 Tunneler 9 | 9 . . . Hauler 1 | . . 1 . Recycler 2 | 1 . 1 . Operator 5 | . . 5 . Watcher 4 | . 2 2 . Swarmer 18 | . 11 7 . Grunt 29 | . 2 25 2 Sentry 7 | . . 5 2 Hunter 2 | . . . 2 Best Kill Streak 11 | 5 6 11 4 Combat Bots Only 5 | . 5 4 2 Max Kills in Single Turn 2 | 2 2 2 1 Gunslinging 1 | . 1 . . Exploded . | . . . . Melee . | . . . . Uniques/NPCs Destroyed . | . . . . Combat | -11 -10 -9 -8 -------- Run | Scr Mat Mat Mat Damage Taken 2649 | . 428 1082 1139 Core 868 | . 67 249 552 Absorbed by Shields . | . . . . Core Remaining (%) 70 | 100 73 37 . Volleys Fired 237 | 24 42 124 47 Largest 2 | 2 2 2 2 Hottest 140 | 80 140 120 116 Shots Fired 420 | 48 79 229 64 Gun 297 | 48 76 139 34 Cannon 120 | . . 90 30 Launcher . | . . . . Special 3 | . 3 . . Kinetic 150 | . 22 113 15 Thermal 270 | 48 57 116 49 Explosive . | . . . . Electromagnetic . | . . . . Robot Hit Streak 33 | 24 12 15 33 Robot Miss Streak 3 | 1 2 2 3 Penetration Max 1 | . . . 1 Secondary Targets 3 | . 2 1 . Max Gunslinging Chain 1 | . 1 1 . Shots Hit Robots 319 | 38 57 167 57 Core Hits 125 | 15 24 65 21 Critical Hits 3 | . 1 2 . Critical Kills 1 | . . 1 . Critical Parts Destroyed 2 | . 1 1 . Melee Attacks . | . . . . Impact . | . . . . Slashing . | . . . . Piercing . | . . . . Sneak Attacks . | . . . . Combat Hostiles . | . . . . Follow-up Attacks . | . . . . Damage Inflicted 4689 | 443 607 2576 1063 Guns 3011 | 443 553 1457 558 Cannons 1622 | . . 1119 503 Explosions . | . . . . Melee . | . . . . Ramming 8 | . 6 . 2 Kinetic 1625 | . 113 1171 341 Thermal 3056 | 443 488 1405 720 Explosive . | . . . . Electromagnetic . | . . . . Impact . | . . . . Slashing . | . . . . Piercing . | . . . . Highest Corruption 1 | . 1 1 . Average Corruption 1 | . 1 1 . Corruption Purged . | . . . . Effects 7 | . 3 4 . Message Errors 4 | . 2 2 . Energy Discharges 1 | . . 1 . Targeting Errors 2 | . 1 1 . Overload Shots . | . . . . Overflow Damage 14 | . . 14 . Projectiles 14 | . . 14 . Explosions . | . . . . Melee . | . . . . Knockbacks . | . . . . Impact . | . . . . Kinetic . | . . . . Secondary . | . . . . Self-Inflicted Damage 2 | . 2 . . Shots . | . . . . Rammed 5 | . 2 . 3 Targets Rammed 5 | . 2 . 3 Kicked . | . . . . Crushed . | . . . . Highest Temperature 352 | 72 241 352 25 Average Temperature 67 | 28 69 81 17 Received Heat Transfer 1461 | . 102 603 756 Effects 1 | . 1 . . Interference 1 | . 1 . . Siege Activations . | . . . . Robots Corrupted . | . . . . Combat Hostiles . | . . . . Parts Fried . | . . . . Impact Corruptions . | . . . . Robots Melted . | . . . . Combat Hostiles . | . . . . Parts Melted 12 | . 1 7 4 Heat Transferred 6741 | 1000 1100 3013 1628 Parts Sabotaged . | . . . . Parts Stolen . | . . . . Parts Stripped . | . . . . Power Chain Reactions . | . . . . Missiles Intercepted . | . . . . Alert | -11 -10 -9 -8 ------- Run | Scr Mat Mat Mat Peak Influence 574 | 70 239 574 411 Average Influence 224 | 29 98 316 312 Maximum Alert Level 2 | . 1 2 2 Low Security (%) 47 | . . . . Level 1 41 | . . . . Level 2 11 | . . . . Level 3 . | . . . . Level 4 . | . . . . Level 5 . | . . . . High Security . | . . . . Max Security . | . . . . Squads Dispatched 9 | . . 7 2 Investigation 4 | . . 2 2 Extermination . | . . . . Reinforcement 5 | . . 5 . Assault . | . . . . Garrison . | . . . . Intercept . | . . . . Construction Impeded . | . . . . Haulers Reinforced . | . . . . Stealth | -11 -10 -9 -8 --------- Run | Scr Mat Mat Mat Distress Signals 3 | . 1 1 1 Communications Jammed . | . . . . Distress Signals . | . . . . Times Spotted 96 | . 20 62 14 Peak Tracking Total 8 | . 4 5 8 Tactical Retreats 10 | . 2 5 3 Traps | -11 -10 -9 -8 ------- Run | Scr Mat Mat Mat Traps Triggered 6 | . 4 2 . Indirectly . | . . . . Trap Hack Attempts . | . . . . Triggered . | . . . . Disarmed . | . . . . Reprogrammed . | . . . . Reused . | . . . . Traps Extracted . | . . . . Installed . | . . . . Triggered . | . . . . Machines | -11 -10 -9 -8 ---------- Run | Scr Mat Mat Mat Machines Disabled . | . . . . Max in Single Turn . | . . . . Machines Sabotaged . | . . . . Garrisons Compromised . | . . . . Overloaded Fab Kills . | . . . . Fab Network Shutdowns . | . . . . Hacking | -11 -10 -9 -8 --------- Run | Scr Mat Mat Mat Machines Accessed 16 | . 7 6 3 Terminals 7 | . 4 3 . Fabricators . | . . . . Repair Stations 2 | . 1 . 1 Recycling Units 4 | . 2 1 1 Scanalyzers 3 | . . 2 1 Garrison Access . | . . . . Total Hacks 65 | . 20 36 9 Successful 54 | . 15 30 9 Failed 11 | . 5 6 . Catastrophic . | . . . . Database Lockouts . | . . . . Manual . | . . . . Terminals 32 | . 16 16 . Fabricators . | . . . . Repair Stations 4 | . 2 . 2 Recycling Units 7 | . 2 2 3 Scanalyzers 22 | . . 18 4 Garrison Access . | . . . . Terminal Hacks 21 | . 11 10 . Record 4 | . 3 1 . Robot Analysis 1 | . 1 . . Prototype ID Bank 3 | . 1 2 . Branch Access Points 1 | . 1 . . Emergency Access Points 3 | . 2 1 . Repair Station Index 1 | . 1 . . Recycling Unit Index 1 | . 1 . . Scanalyzer Index 1 | . . 1 . Locate Traps 2 | . . 2 . Dispatch Records 1 | . 1 . . Security Status 1 | . . 1 . Registered Components 1 | . . 1 . Zone Layout 1 | . . 1 . Fabricator Hacks . | . . . . Repair Station Hacks 4 | . 2 . 2 Scan Component 2 | . 1 . 1 Repair 2 | . 1 . 1 Recycling Unit Hacks 7 | . 2 2 3 Recycle Component 1 | . . . 1 Process 1 | . . . 1 Report Inventory 4 | . 2 1 1 Retrieve Components 1 | . . 1 . Scanalyzer 22 | . . 18 4 Insert Component 11 | . . 9 2 Analyze 11 | . . 9 2 Garrison Access Hacks . | . . . . Unauthorized Hacks . | . . . . Terminals . | . . . . Fabricators . | . . . . Repair Stations . | . . . . Recycling Units . | . . . . Scanalyzers . | . . . . Garrison Access . | . . . . Data Cores Recovered . | . . . . Used . | . . . . Hacking Detections 12 | . 5 5 2 Full Trace Events 7 | . 1 4 2 Feedback Events . | . . . . Feedback Blocked . | . . . . Robot Schematics Acquired . | . . . . Robots Built . | . . . . Matter . | . . . . Time . | . . . . Total Robot Build Rating . | . . . . Part Schematics Acquired 10 | . . 8 2 Parts Built . | . . . . Matter . | . . . . Time . | . . . . Total Part Build Rating . | . . . . Parts Repaired 2 | . 1 . 1 Time 52 | . 26 . 26 Parts Recycled 1 | . . . 1 Recycled Matter 143 | . . . 143 Retrieved Matter . | . . . . Retrieved Components 10 | . . 10 . Parts Scanalyzed 10 | . . 8 2 Part Schematics Acquired 10 | . . 8 2 Parts Damaged . | . . . . Bothacking | -11 -10 -9 -8 ------------ Run | Scr Mat Mat Mat Used RIF Installer . | . . . . Robots Hacked . | . . . . Non-combat . | . . . . Combat . | . . . . Robot Hacks Applied . | . . . . Relay Couplers Released . | . . . . Robots Rewired . | . . . . Allies Hacked . | . . . . Hacks Repelled . | . . . . Allies | -11 -10 -9 -8 -------- Run | Scr Mat Mat Mat Total Allies . | . . . . Largest Group . | . . . . Highest-Rated Group . | . . . . Highest-Rated Ally . | . . . . Total Orders . | . . . . Ally Attacks . | . . . . Total Damage . | . . . . Kills . | . . . . Allies Corrupted . | . . . . Allies Melted . | . . . . Intel | -11 -10 -9 -8 ------- Run | Scr Mat Mat Mat Robot Analysis Total 1 | . 1 . . Derelict Logs Recovered . | . . . . Drone Launches . | . . . . Drone Recoveries . | . . . . Exploration | -11 -10 -9 -8 ------------- Run | Scr Mat Mat Mat Turns Passed 3010 | 447 667 1483 413 Spaces Moved 2386 | 447 624 1074 241 Core 17 | 6 . 9 2 Treads . | . . . . Legs . | . . . . Wheels 2369 | 441 624 1065 239 Hover . | . . . . Flight . | . . . . Fastest Speed 50 | 50 80 80 96 Average Speed 89 | 79 80 96 100 Slowest Speed 700 | 80 80 700 550 Overloaded Moves . | . . . . Propulsion Burnouts . | . . . . Robots Hopped . | . . . . Cave-ins Triggered . | . . . . Exploration Rate (%) 45 | 12 71 75 24 Regions Visited 3 Branch Regions . Pre-discovered Areas . | . . . . Known Exits Taken 1 | . . 1 . Unknown Exits Taken 2 | 1 1 . . Scrap Searched . | . . . . Spaces Dug . | . . . . Terrain Destroyed . | . . . . Melee . | . . . . Projectile . | . . . . AOE . | . . . . Actions | -11 -10 -9 -8 --------- Run | Scr Mat Mat Mat Total 2869 | 490 711 1326 342 Wait 104 | . 24 51 29 Move 2383 | 446 623 1073 241 Hop . | . . . . Pick Up 61 | 13 9 33 6 Fast Attach . | . . . . Attach 45 | 7 7 21 10 Detach 8 | . . 4 4 Swap 4 | . 1 2 1 Drop 22 | . 3 18 1 Fire 237 | 24 42 124 47 Melee . | . . . . Ram 5 | . 2 . 3 Kick . | . . . . Crush . | . . . . Escape Stasis . | . . . . Rewire . | . . . . Trap . | . . . . Miscellaneous . | . . . . Route ------- -11/Scrapyard -10/Materials (discovered 4 exits: *Mat x2 / *Min x2) -9/Materials (discovered 3 exits: *Mat x3) -8/Materials (discovered 1 exit: [*Fac]) History --------- Turn | Location | Event 31 | -11/Scrapyard | Discovered new exit (range 16) 448 | -11/Scrapyard | Entered Materials 449 | -10/Materials | Build established: Mutant 460 | -10/Materials | Identified exit to Mines 689 | -10/Materials | Lost 5 parts (1p1n3w) 689 | -10/Materials | Discovered new exit (range 15) 938 | -10/Materials | Discovered new exit (range 5) 1060 | -10/Materials | Repaired Sensor Array 1115 | -10/Materials | Entered another Materials area 1115 | -9/Materials | Evolved 2 slots: Propulsion x1, Utility x1 1256 | -9/Materials | Discovered new exit (range 14) 1487 | -9/Materials | Discovered new exit (range 8) 1839 | -9/Materials | Discovered new exit (range 7) 2208 | -9/Materials | Core integrity fell below 50% 2563 | -9/Materials | Build established: Scavenger-Mutant 2597 | -9/Materials | Identified exit to Materials 2598 | -9/Materials | Entered another Materials area 2598 | -8/Materials | Evolved 2 slots: Utility x2 2640 | -8/Materials | Repaired Lgt. Ion Engine 2914 | -8/Materials | Discovered new exit (range 7) 2992 | -8/Materials | Core integrity fell below 50% 3004 | -8/Materials | Core integrity fell below 20% 3011 | -8/Materials | Destroyed by G-47 Trooper with Particle Gun Last Messages --------------- 02967_ Atomic Centrifuge disabled. 02969_ Slug penetrates Atomic Centrifuge. 02973_ Beam Rifle destroyed. 02975_ Slug penetrates G-50 Soldier. 02975_ Sensor Array destroyed. 02977_ Slug penetrates G-50 Soldier. 02977_ Com. Wheel destroyed. 02977_ Imp. Heat Sink destroyed. 02979_ Slug penetrates G-50 Soldier. 02979_ Destroyed Hvy. Laser. 02981_ Slug penetrates G-50 Soldier. 02981_ Destroyed Particle Gun. 02983_ Slug penetrates G-47 Trooper. 02983_ G-50 Soldier destroyed. 02983_ Wheel destroyed. 02984_ Lgt. Nuclear Core destroyed. 02986_ Targeting Computer destroyed. 02988_ Gauss Rifle destroyed. 03000_ Slammed into G-47 Trooper. [Achievement: 5k Club] Map ----- +----------------------------------------------------+ | """" + #= #???????????????????????????? #?? | | """" # #% * #??????????????????????????? #?? | | """ + *+% % +?????????????????????????? #?? | | # =# = #????????????????????????? #?? | | ###### ##########????????????############# ##? | | + # #????????????# ! #? | | # + """ #????????????# ## | | # # """ = #????????????# | | # # """ #????????????# | | # #] #????????????# "" ^"" ^ #? | | [# # """ #????????????# "" """ #? | | # # """ #????????????# "" """ ]??? | | + + """ #????????????# """ """ ]]#? | | # # #????????????# "" """ #? | | ### ## ##########????????????# #? | | ##### /###################### #? | | % "Y" #? | | [% % % """ #? | | ##### ! !##+#########+########## #? | | ######+#### ???????#% ! ## #? | | # # ???????# ## ###+#### #? | | # """ ! # ??????# ## #??????? #? | | # """ # ??????# "" """ ## < #????????#+###? | | # """ # * "?????# "" """ ## #?????????????? | | # """ "" # "?????#g """ ######?????????????? | | # S"" # ""????#g %@g #??????????????????? | | #! "" # "????# g #??????????????????? | | # #####?????###########??????????????????? | | ###########??????????????????????????????????????? | | ?????????????????????????????????????????????????? | | ?????????????????????????????????????????????????? | | ?????????????????????????????????????????????????? | | ?????????????????????????????????????????????????? | | | | | | | | | | | | | | | | | | | | | | | | | | | | | | | | | | | +----------------------------------------------------+ Best States ------------- Heat Dissipation 45 Energy Generation 14 Energy Capacity 265 Matter Stores 300 Matter Capacity 300 Sight Range 16 Robot Scan Range 10 Terrain Scan Range 16 Terrain Scan Density 10 Armor Coverage 150 Resistance: KI 20 Resistance: TH 20 Resistance: EX 20 Resistance: EM 20 Resistance: I 20 Resistance: S 20 Resistance: P 20 Evasion (%) 44 Targeting Accuracy 5 Item Schematics ----------------- Imp. Signal Interpreter | -9/Materials | Scanalyzed Beam Cannon | -9/Materials | Scanalyzed Sensor Array | -9/Materials | Scanalyzed Imp. Light Armor Plating | -9/Materials | Scanalyzed Hacking Suite | -9/Materials | Scanalyzed Targeting Computer | -9/Materials | Scanalyzed Transport Network Coupler | -9/Materials | Scanalyzed Field Recycling Unit | -9/Materials | Scanalyzed Beam Rifle | -8/Materials | Scanalyzed Imp. Heat Sink | -8/Materials | Scanalyzed Robot Schematics ------------------ None Fabricated ------------ Nothing Alien Tech Used ----------------- None Achievements -------------- 5k Club Challenges ------------ None Game ------ Seed ParticleMetafieldSink Manual? 0 Play Time 00:53:05 Cumulative 10.5 hours Start 2019.10.27 @ 15:02:17 End 2019.10.27 @ 19:02:20 Sessions 1 Manual Loads 0 Difficulty Adventurer Special Mode None Game No. 21 Rogue 7 Adventurer 7 Explorer 0 Win Type - Total 0 Types 0/0/0/0/0/0/0 Lore% 13 Gallery% 16 Achievement% 13 Wizard Run 0 Options --------- ASCII 0 Keyboard 0 Movement Mouse Keybinds 0 Fullscreen 2 Font 18/SmallcapsGlow Map View 76x50 Tactical HUD 1 Map Filters NONE Filters NONE Steam 1 RUN: 2c8669d7-d7f1-4a9f-88f1-1034470c220c